[Event "Gibraltar Junior Intl U16 2019"]
[Site "Caleta"]
[Date "2019.08.16"]
[Round "1.23"]
[White "Greco, Joseph"]
[Black "Moughtin-Leay, John"]
[Result "1-0"]
[ECO "C66"]
[WhiteElo "1690"]
[BlackElo "1215"]
[Annotator "NA"]
[PlyCount "67"]
[EventDate "2019.08.16"]
[EventType "swiss"]
[EventCountry "GGB"]
[SourceTitle "playchess.com"]
[Source "ChessBase"]
[SourceQuality "1"]
[TimeControl "6600+10"]

1. e4 {[%emt 0:00:00]} e5 {[%emt 0:00:00]} 2. Nf3 {[%emt 0:01:59]} Nc6 {[%emt 0:00:11]} 3. Bb5 {[%emt 0:00:26]} d6 {[%emt 0:00:52]} 4. O-O {[%emt 0:01:09]} Nf6 {[%emt 0:00:10]} 5. Re1 {[%emt 0:00:54]} Bg4 {[%emt 0:00:52]} 6. d3 {[%emt 0:00:55]} h6 {[%emt 0:00:34]} 7. Be3 {[%emt 0:00:21]} a6 {[%emt 0:00:20]} 8. Ba4 {[%emt 0:00:20]} g5 {[%emt 0:01:02]} 9. Nbd2 {[%emt 0:03:06]} Bg7 {[%emt 0:01:48]} 10. Nf1 {[%emt 0:01:56]} O-O {[%emt 0:02:47]} 11. h3 {[%emt 0:03:35]} Be6 {[%emt 0:00:16]} 12. g4 {[%emt 0:01:40]} b5 {[%emt 0:01:07]} 13. Bb3 {[%emt 0:00:33]} Ne7 {[%emt 0:00:22]} 14. c3 {[%emt 0:00:42]} d5 {[%emt 0:06:16]} 15. Nxe5 {[%emt 0:06:36]} Nxe4 {[%emt 0:00:16]} 16. Nxf7 {[%emt 0:01:45]} Bxf7 {[%emt 0:01:15]} 17. dxe4 {[%emt 0:00:31]} dxe4 {[%emt 0:00:17]} 18. Ng3 {[%emt 0:04:29]} Bxb3 {[%emt 0:01:31]} 19. Qxb3+ {[%emt 0:01:34]} Qd5 {[%emt 0:01:18]} 20. Rad1 {[%emt 0:02:46]} Qxb3 {[%emt 0:00:19]} 21. axb3 {[%emt 0:00:14]} Rf3 {[%emt 0:05:39]} 22. Rd7 {[%emt 0:01:36]} Re8 {[%emt 0:00:59]} 23. Kg2 {[%emt 0:06:47]} Nc6 {[%emt 0:02:27]} 24. Nf5 {[%emt 0:02:03]} Bf8 {[%emt 0:01:50]} 25. Rxc7 {[%emt 0:01:24]} Na5 {[%emt 0:03:13]} 26. Rd1 {[%emt 0:03:07]} Nxb3 {[%emt 0:00:46]} 27. Rdd7 {[%emt 0:00:37]} Na1 {[%emt 0:02:02]} 28. Rh7 {[%emt 0:01:40]} Nc2 {[%emt 0:00:14]} 29. Bd4 {[%emt 0:01:54]} Nxd4 {[%emt 0:00:21]} 30. cxd4 {[%emt 0:00:12]} Re6 {[%emt 0:02:20]} 31. d5 {[%emt 0:00:45]} Rf6 {[%emt 0:03:47]} 32. d6 {[%emt 0:01:01]} Bxd6 {[%emt 0:00:19]} 33. Rcg7+ {[%emt 0:00:21]} Kf8 {[%emt 0:00:26]} 34. Rh8# 1-0

[Event "Gibraltar Junior Intl U16 2019"]
[Site "Caleta"]
[Date "2019.08.16"]
[Round "1.24"]
[White "Harbinson, Alec Ryan"]
[Black "Aubury, Benjamin"]
[Result "0-1"]
[ECO "B13"]
[WhiteElo "1118"]
[BlackElo "1686"]
[Annotator "NA"]
[PlyCount "82"]
[EventDate "2019.08.16"]
[EventType "swiss"]
[EventCountry "GGB"]
[SourceTitle "playchess.com"]
[Source "ChessBase"]
[SourceQuality "1"]
[TimeControl "6600+10"]

1. e4 {[%emt 0:00:00]} c6 {[%emt 0:00:05]} 2. Nc3 {[%emt 0:00:32]} d5 {[%emt 0:00:10]} 3. exd5 {[%emt 0:01:09]} cxd5 {[%emt 0:00:11]} 4. d4 {[%emt 0:00:05]} Nc6 {[%emt 0:01:09]} 5. Bb5 {[%emt 0:03:36]} Nf6 {[%emt 0:01:32]} 6. Nge2 {[%emt 0:07:18]} a6 {[%emt 0:04:02]} 7. Bxc6+ {[%emt 0:01:39]} bxc6 {[%emt 0:00:46]} 8. Bf4 {[%emt 0:00:54]} Bf5 {[%emt 0:02:27]} 9. Ng3 {[%emt 0:02:54]} Bg6 {[%emt 0:01:02]} 10. O-O {[%emt 0:12:49]} e6 {[%emt 0:01:08]} 11. Nce2 {[%emt 0:04:48]} Qb6 {[%emt 0:02:25]} 12. b3 {[%emt 0:01:12]} Be7 {[%emt 0:01:03]} 13. c3 {[%emt 0:00:19]} c5 {[%emt 0:02:00]} 14. Be5 {[%emt 0:05:48]} O-O {[%emt 0:02:34]} 15. Nf4 {[%emt 0:02:34]} Nd7 {[%emt 0:03:50]} 16. Nxg6 {[%emt 0:02:13]} hxg6 {[%emt 0:00:41]} 17. Bf4 {[%emt 0:02:02]} cxd4 {[%emt 0:01:05]} 18. cxd4 {[%emt 0:01:37]} Bf6 {[%emt 0:00:56]} 19. Ne2 {[%emt 0:00:56]} Rfc8 {[%emt 0:00:44]} 20. Qd2 {[%emt 0:01:14]} Nb8 {[%emt 0:06:51]} 21. Rac1 {[%emt 0:01:37]} Nc6 {[%emt 0:01:47]} 22. Be3 {[%emt 0:03:07]} Na7 {[%emt 0:04:52]} 23. Bg5 {[%emt 0:06:12]} Nb5 {[%emt 0:01:18]} 24. Bxf6 {[%emt 0:00:43]} gxf6 {[%emt 0:00:02]} 25. h4 {[%emt 0:02:45]} Kg7 {[%emt 0:01:31]} 26. Rxc8 {[%emt 0:01:57]} Rxc8 {[%emt 0:00:15]} 27. Rd1 {[%emt 0:00:54]} Rc6 {[%emt 0:01:07]} 28. f4 {[%emt 0:05:46]} Qc7 {[%emt 0:00:59]} 29. Rc1 {[%emt 0:01:49]} Nxd4 {[%emt 0:00:33]} 30. Rxc6 {[%emt 0:01:19]} Nxc6 {[%emt 0:01:04]} 31. Qc3 {[%emt 0:00:29]} Qb6+ {[%emt 0:00:28]} 32. Kh2 {[%emt 0:00:53]} Qf2 {[%emt 0:01:03]} 33. Qxc6 {[%emt 0:02:01]} Qxe2 {[%emt 0:00:09]} 34. Qa4 {[%emt 0:00:07]} e5 {[%emt 0:00:59]} 35. fxe5 {[%emt 0:01:34]} fxe5 {[%emt 0:00:06]} 36. Qa5 {[%emt 0:00:13]} d4 {[%emt 0:02:42]} 37. Qa4 {[%emt 0:03:31]} Qd3 {[%emt 0:04:20]} 38. Kg1 {[%emt 0:05:28]} Qe3+ {[%emt 0:00:54]} 39. Kh2 {[%emt 0:01:18]} d3 {[%emt 0:00:39]} 40. Qxa6 {[%emt 0:01:27]} d2 {[%emt 0:00:26]} 41. Qf1 {[%emt 0:04:07]} Qf4+ {[%emt 0:00:32]} 0-1

[Event "Gibraltar Junior Intl U16 2019"]
[Site "Caleta"]
[Date "2019.08.16"]
[Round "2.1"]
[White "Bartelt, Max Peter"]
[Black "Garrido Outon, Alex"]
[Result "0-1"]
[ECO "A60"]
[WhiteElo "1803"]
[BlackElo "2231"]
[Annotator "NA"]
[PlyCount "70"]
[EventDate "2019.08.16"]
[EventType "swiss"]
[EventCountry "GGB"]
[SourceTitle "playchess.com"]
[Source "ChessBase"]
[SourceQuality "1"]
[TimeControl "6600+10"]

1. d4 {[%emt 0:00:00]} c5 {[%emt 0:00:00]} 2. d5 {[%emt 0:00:00]} Nf6 {[%emt 0:00:01]} 3. c4 {[%emt 0:00:02]} e6 {[%emt 0:00:04]} 4. Nc3 {[%emt 0:00:07]} exd5 {[%emt 0:00:04]} 5. Nxd5 {[%emt 0:00:20]} Nxd5 {[%emt 0:01:59]} 6. cxd5 {[%emt 0:01:12]} d6 {[%emt 0:03:28]} 7. e4 {[%emt 0:02:31]} g6 {[%emt 0:00:08]} 8. f4 {[%emt 0:09:38]} Bg7 {[%emt 0:02:21]} 9. Nf3 {[%emt 0:00:35]} O-O {[%emt 0:01:41]} 10. Qc2 {[%emt 0:02:41]} Bg4 {[%emt 0:12:04]} 11. Nd2 {[%emt 0:03:17]} f5 {[%emt 0:12:18]} 12. Bd3 {[%emt 0:16:33]} fxe4 {[%emt 0:03:36]} 13. Nxe4 {[%emt 0:01:00]} Bd4 {[%emt 0:05:18]} 14. Bd2 {[%emt 0:06:27]} Qh4+ {[%emt 0:02:25]} 15. g3 {[%emt 0:01:03]} Qe7 {[%emt 0:06:31]} 16. Bc3 {[%emt 0:09:13]} Bf3 {[%emt 0:02:36]} 17. Kd2 {[%emt 0:07:03]} Bxh1 {[%emt 0:09:24]} 18. Rxh1 {[%emt 0:00:02]} Nd7 {[%emt 0:03:54]} 19. Bxd4 {[%emt 0:05:44]} cxd4 {[%emt 0:00:28]} 20. Re1 {[%emt 0:00:28]} Rfe8 {[%emt 0:06:13]} 21. Qa4 {[%emt 0:01:03]} Nc5 {[%emt 0:02:19]} 22. Nf6+ {[%emt 0:01:28]} Qxf6 {[%emt 0:00:15]} 23. Rxe8+ {[%emt 0:00:02]} Kf7 {[%emt 0:00:15]} 24. Rxa8 {[%emt 0:01:46]} Nxa4 {[%emt 0:00:04]} 25. Rxa7 {[%emt 0:00:05]} Nc5 {[%emt 0:02:14]} 26. b4 {[%emt 0:00:02]} Nxd3 {[%emt 0:02:51]} 27. Rxb7+ {[%emt 0:00:01]} Ke8 {[%emt 0:01:46]} 28. Kxd3 {[%emt 0:00:06]} g5 {[%emt 0:01:57]} 29. fxg5 {[%emt 0:21:29]} Qe5 {[%emt 0:00:32]} 30. Rxh7 {[%emt 0:05:44]} Qe3+ {[%emt 0:00:35]} 31. Kc4 {[%emt 0:00:17]} Qc3+ {[%emt 0:00:02]} 32. Kb5 {[%emt 0:00:07]} Qd3+ {[%emt 0:00:03]} 33. Kc6 {[%emt 0:00:09]} Qxh7 {[%emt 0:00:05]} 34. g6 {[%emt 0:00:33]} Qd7+ {[%emt 0:00:09]} 35. Kb6 {[%emt 0:00:04]} d3 {[%emt 0:00:04]} 0-1

[Event "Gibraltar Junior Intl U16 2019"]
[Site "Caleta"]
[Date "2019.08.16"]
[Round "2.2"]
[White "Cuellar Montes, Alejandro"]
[Black "Lorente Serrano, Rosa Adela"]
[Result "1-0"]
[ECO "E76"]
[WhiteElo "2143"]
[BlackElo "1810"]
[Annotator "NA"]
[PlyCount "59"]
[EventDate "2019.08.16"]
[EventType "swiss"]
[EventCountry "GGB"]
[SourceTitle "playchess.com"]
[Source "ChessBase"]
[SourceQuality "1"]
[TimeControl "6600+10"]

1. d4 {[%emt 0:00:00]} Nf6 {[%emt 0:00:14]} 2. c4 {[%emt 0:00:02]} g6 {[%emt 0:00:21]} 3. Nc3 {[%emt 0:00:04]} Bg7 {[%emt 0:00:23]} 4. e4 {[%emt 0:00:06]} d6 {[%emt 0:00:34]} 5. f4 {[%emt 0:00:04]} c5 {[%emt 0:02:14]} 6. d5 {[%emt 0:00:36]} b5 {[%emt 0:04:52]} 7. cxb5 {[%emt 0:00:18]} a6 {[%emt 0:00:13]} 8. a4 {[%emt 0:00:03]} Bd7 {[%emt 0:01:32]} 9. Qc2 {[%emt 0:01:55]} O-O {[%emt 0:03:32]} 10. Nf3 {[%emt 0:02:14]} axb5 {[%emt 0:01:45]} 11. Bxb5 {[%emt 0:00:09]} Bxb5 {[%emt 0:06:35]} 12. Nxb5 {[%emt 0:00:13]} e6 {[%emt 0:01:28]} 13. dxe6 {[%emt 0:01:56]} fxe6 {[%emt 0:00:12]} 14. O-O {[%emt 0:00:10]} Qb6 {[%emt 0:06:36]} 15. Kh1 {[%emt 0:09:31]} Nc6 {[%emt 0:06:16]} 16. Be3 {[%emt 0:04:41]} Ng4 {[%emt 0:03:30]} 17. Bg1 {[%emt 0:01:43]} Na5 {[%emt 0:04:40]} 18. h3 {[%emt 0:01:30]} Nh6 {[%emt 0:02:54]} 19. Ng5 {[%emt 0:03:33]} Rae8 {[%emt 0:02:03]} 20. Rad1 {[%emt 0:04:10]} Nb7 {[%emt 0:03:20]} 21. Qd2 {[%emt 0:03:15]} Qa6 {[%emt 0:02:55]} 22. Nc7 {[%emt 0:01:20]} Qxa4 {[%emt 0:01:35]} 23. Ngxe6 {[%emt 0:03:20]} Qxe4 {[%emt 0:03:25]} 24. Nxe8 {[%emt 0:02:51]} Rxe8 {[%emt 0:00:08]} 25. Nxg7 {[%emt 0:00:22]} Kxg7 {[%emt 0:00:05]} 26. Rfe1 {[%emt 0:00:09]} Qc6 {[%emt 0:00:34]} 27. Qc3+ {[%emt 0:00:18]} Kg8 {[%emt 0:00:49]} 28. Qb3+ {[%emt 0:00:12]} c4 {[%emt 0:01:09]} 29. Rxe8+ {[%emt 0:00:10]} Kf7 {[%emt 0:00:07]} 30. Qc3 {[%emt 0:02:56]} 1-0

[Event "Gibraltar Junior Intl U16 2019"]
[Site "Caleta"]
[Date "2019.08.16"]
[Round "2.3"]
[White "Onslow, Teddy"]
[Black "Perez Beltran, Salvador"]
[Result "0-1"]
[ECO "D00"]
[WhiteElo "1739"]
[BlackElo "2103"]
[Annotator "NA"]
[PlyCount "76"]
[EventDate "2019.08.16"]
[EventType "swiss"]
[EventCountry "GGB"]
[SourceTitle "playchess.com"]
[Source "ChessBase"]
[SourceQuality "1"]
[TimeControl "6600+10"]

1. d4 {[%emt 0:00:00]} Nf6 {[%emt 0:00:00]} 2. Bf4 {[%emt 0:00:00]} d5 {[%emt 0:00:10]} 3. e3 {[%emt 0:00:06]} c5 {[%emt 0:00:11]} 4. c3 {[%emt 0:00:09]} Nc6 {[%emt 0:00:11]} 5. Bd3 {[%emt 0:01:10]} Qb6 {[%emt 0:01:21]} 6. Qb3 {[%emt 0:02:01]} c4 {[%emt 0:01:46]} 7. Qxb6 {[%emt 0:00:07]} axb6 {[%emt 0:00:12]} 8. Be2 {[%emt 0:05:29]} Bf5 {[%emt 0:00:11]} 9. Nd2 {[%emt 0:00:25]} b5 {[%emt 0:02:04]} 10. Ngf3 {[%emt 0:01:04]} h6 {[%emt 0:03:50]} 11. O-O {[%emt 0:00:17]} b4 {[%emt 0:01:32]} 12. Ne5 {[%emt 0:06:29]} e6 {[%emt 0:09:11]} 13. cxb4 {[%emt 0:05:14]} Bxb4 {[%emt 0:04:14]} 14. Nb1 {[%emt 0:03:46]} Nxe5 {[%emt 0:14:01]} 15. Bxe5 {[%emt 0:00:24]} Bxb1 {[%emt 0:01:54]} 16. Rfxb1 {[%emt 0:00:17]} c3 {[%emt 0:00:26]} 17. a4 {[%emt 0:04:56]} cxb2 {[%emt 0:01:25]} 18. Ra2 {[%emt 0:00:38]} Bc3 {[%emt 0:02:08]} 19. f3 {[%emt 0:02:14]} Ke7 {[%emt 0:02:10]} 20. Bb5 {[%emt 0:02:47]} Rhc8 {[%emt 0:01:54]} 21. Kf2 {[%emt 0:00:51]} Nh5 {[%emt 0:00:53]} 22. Ke2 {[%emt 0:02:57]} f6 {[%emt 0:00:45]} 23. Bg3 {[%emt 0:00:05]} Nxg3+ {[%emt 0:01:04]} 24. hxg3 {[%emt 0:00:05]} e5 {[%emt 0:01:04]} 25. Kd3 {[%emt 0:00:45]} f5 {[%emt 0:01:03]} 26. Ra3 {[%emt 0:01:40]} e4+ {[%emt 0:01:42]} 27. Ke2 {[%emt 0:00:19]} Bb4 {[%emt 0:13:26]} 28. Rb3 {[%emt 0:01:23]} Ba3 {[%emt 0:06:08]} 29. R1xb2 {[%emt 0:06:12]} Bxb2 {[%emt 0:00:19]} 30. Rxb2 {[%emt 0:00:03]} Rc1 {[%emt 0:01:41]} 31. g4 {[%emt 0:01:20]} fxg4 {[%emt 0:02:24]} 32. fxg4 {[%emt 0:00:02]} Rac8 {[%emt 0:00:13]} 33. Kf2 {[%emt 0:00:32]} R8c2+ {[%emt 0:00:25]} 34. Rxc2 {[%emt 0:00:07]} Rxc2+ {[%emt 0:00:05]} 35. Kg3 {[%emt 0:00:05]} g5 {[%emt 0:00:09]} 36. Bf1 {[%emt 0:00:58]} Kd6 {[%emt 0:00:18]} 37. Bb5 {[%emt 0:00:22]} Kc7 {[%emt 0:00:12]} 38. Be8 {[%emt 0:00:19]} Re2 {[%emt 0:00:20]} 0-1

[Event "Gibraltar Junior Intl U16 2019"]
[Site "Caleta"]
[Date "2019.08.16"]
[Round "2.4"]
[White "Cesar Maestre, Bernardo"]
[Black "Gogia, Armaan"]
[Result "1-0"]
[ECO "E62"]
[WhiteElo "2084"]
[BlackElo "1754"]
[Annotator "NA"]
[PlyCount "95"]
[EventDate "2019.08.16"]
[EventType "swiss"]
[EventCountry "GGB"]
[SourceTitle "playchess.com"]
[Source "ChessBase"]
[SourceQuality "1"]
[TimeControl "6600+10"]

1. d4 {[%emt 0:00:00]} Nf6 {[%emt 0:00:02]} 2. Nf3 {[%emt 0:00:00]} g6 {[%emt 0:00:05]} 3. g3 {[%emt 0:00:01]} Bg7 {[%emt 0:00:03]} 4. Bg2 {[%emt 0:00:03]} O-O {[%emt 0:00:06]} 5. O-O {[%emt 0:00:06]} d6 {[%emt 0:00:03]} 6. c4 {[%emt 0:00:04]} Nc6 {[%emt 0:00:03]} 7. Nc3 {[%emt 0:00:09]} e5 {[%emt 0:00:02]} 8. dxe5 {[%emt 0:00:05]} Nxe5 {[%emt 0:00:04]} 9. Nxe5 {[%emt 0:00:13]} dxe5 {[%emt 0:00:04]} 10. Bg5 {[%emt 0:00:07]} Qxd1 {[%emt 0:00:25]} 11. Rfxd1 {[%emt 0:00:08]} c6 {[%emt 0:00:05]} 12. Rac1 {[%emt 0:02:47]} Be6 {[%emt 0:03:31]} 13. b3 {[%emt 0:01:02]} h6 {[%emt 0:03:34]} 14. Be3 {[%emt 0:00:26]} Rfe8 {[%emt 0:06:48]} 15. Na4 {[%emt 0:01:08]} Ng4 {[%emt 0:06:33]} 16. Bc5 {[%emt 0:00:52]} Bf8 {[%emt 0:01:14]} 17. Bxf8 {[%emt 0:00:19]} Kxf8 {[%emt 0:00:28]} 18. Nc5 {[%emt 0:00:09]} Re7 {[%emt 0:03:45]} 19. Nxe6+ {[%emt 0:00:09]} Rxe6 {[%emt 0:00:30]} 20. Bh3 {[%emt 0:00:19]} f5 {[%emt 0:03:06]} 21. f3 {[%emt 0:00:26]} Nf6 {[%emt 0:03:59]} 22. e4 {[%emt 0:00:17]} Re7 {[%emt 0:02:13]} 23. exf5 {[%emt 0:00:10]} gxf5 {[%emt 0:01:29]} 24. Bxf5 {[%emt 0:00:06]} Kf7 {[%emt 0:00:41]} 25. Kf2 {[%emt 0:00:29]} Rg8 {[%emt 0:01:13]} 26. Re1 {[%emt 0:04:15]} Rg5 {[%emt 0:01:40]} 27. Bb1 {[%emt 0:01:00]} h5 {[%emt 0:05:38]} 28. h4 {[%emt 0:00:19]} Rg8 {[%emt 0:00:19]} 29. Bf5 {[%emt 0:00:58]} Rge8 {[%emt 0:00:32]} 30. Rcd1 {[%emt 0:01:03]} a5 {[%emt 0:01:12]} 31. Re2 {[%emt 0:02:56]} Ra8 {[%emt 0:04:08]} 32. Red2 {[%emt 0:02:22]} c5 {[%emt 0:00:52]} 33. Rd8 {[%emt 0:00:56]} Ra7 {[%emt 0:01:37]} 34. a4 {[%emt 0:01:15]} Ne8 {[%emt 0:01:15]} 35. R1d7 {[%emt 0:01:50]} b6 {[%emt 0:00:55]} 36. Rxa7 {[%emt 0:00:46]} Rxa7 {[%emt 0:00:08]} 37. Rd7+ {[%emt 0:07:06]} Rxd7 {[%emt 0:00:12]} 38. Bxd7 {[%emt 0:00:07]} Nc7 {[%emt 0:05:10]} 39. Ke3 {[%emt 0:00:43]} Ke7 {[%emt 0:00:04]} 40. Bf5 {[%emt 0:00:24]} Kf6 {[%emt 0:00:12]} 41. g4 {[%emt 0:01:07]} Ne8 {[%emt 0:00:39]} 42. Bd3 {[%emt 0:00:58]} Ng7 {[%emt 0:04:26]} 43. g5+ {[%emt 0:01:31]} Kf7 {[%emt 0:00:34]} 44. Be4 {[%emt 0:00:49]} Ke7 {[%emt 0:01:00]} 45. f4 {[%emt 0:03:22]} exf4+ {[%emt 0:06:10]} 46. Kxf4 {[%emt 0:00:08]} Ne6+ {[%emt 0:01:07]} 47. Ke5 {[%emt 0:00:29]} Nd4 {[%emt 0:02:18]} 48. Bd5 {[%emt 0:02:42]} 1-0

[Event "Gibraltar Junior Intl U16 2019"]
[Site "Caleta"]
[Date "2019.08.16"]
[Round "2.5"]
[White "Gutierrez Lupion, Nuria"]
[Black "Kracht, Raphael"]
[Result "0-1"]
[ECO "B80"]
[WhiteElo "1712"]
[BlackElo "2072"]
[Annotator "NA"]
[PlyCount "42"]
[EventDate "2019.08.16"]
[EventType "swiss"]
[EventCountry "GGB"]
[SourceTitle "playchess.com"]
[Source "ChessBase"]
[SourceQuality "1"]
[TimeControl "6600+10"]

1. e4 {[%emt 0:00:00]} c5 {[%emt 0:00:12]} 2. Nf3 {[%emt 0:00:21]} d6 {[%emt 0:00:03]} 3. d4 {[%emt 0:00:15]} cxd4 {[%emt 0:00:55]} 4. Nxd4 {[%emt 0:00:08]} Nf6 {[%emt 0:00:06]} 5. Nc3 {[%emt 0:00:09]} a6 {[%emt 0:00:09]} 6. f3 {[%emt 0:01:02]} e6 {[%emt 0:02:18]} 7. Be3 {[%emt 0:02:42]} b5 {[%emt 0:00:16]} 8. g4 {[%emt 0:05:07]} b4 {[%emt 0:10:41]} 9. Nce2 {[%emt 0:04:53]} h6 {[%emt 0:08:49]} 10. h4 {[%emt 0:03:46]} Bb7 {[%emt 0:19:30]} 11. Qd2 {[%emt 0:05:12]} d5 {[%emt 0:13:16]} 12. exd5 {[%emt 0:08:34]} Nxd5 {[%emt 0:00:51]} 13. Bf2 {[%emt 0:01:57]} Nd7 {[%emt 0:03:06]} 14. O-O-O {[%emt 0:05:22]} Rc8 {[%emt 0:02:14]} 15. Bg2 {[%emt 0:06:36]} N7b6 {[%emt 0:06:16]} 16. Nb3 {[%emt 0:05:28]} Nc4 {[%emt 0:19:01]} 17. Qd3 {[%emt 0:04:25]} Qc7 {[%emt 0:07:58]} 18. Ned4 {[%emt 0:06:57]} Nf4 {[%emt 0:02:56]} 19. Qf1 {[%emt 0:01:20]} e5 {[%emt 0:01:09]} 20. Re1 {[%emt 0:01:58]} Be7 {[%emt 0:00:49]} 21. Nf5 {[%emt 0:00:27]} Nd2 {[%emt 0:01:18]} 0-1

[Event "Gibraltar Junior Intl U16 2019"]
[Site "Caleta"]
[Date "2019.08.16"]
[Round "2.7"]
[White "Martinez Soriano, Javier"]
[Black "Volovich, Julia"]
[Result "0-1"]
[ECO "C00"]
[WhiteElo "1992"]
[BlackElo "1726"]
[Annotator "NA"]
[PlyCount "28"]
[EventDate "2019.08.16"]
[EventType "swiss"]
[EventCountry "GGB"]
[SourceTitle "playchess.com"]
[Source "ChessBase"]
[SourceQuality "1"]
[TimeControl "6600+10"]

1. e4 {[%emt 0:00:00]} e6 {[%emt 0:00:00]} 2. d3 {[%emt 0:00:05]} d5 {[%emt 0:00:00]} 3. Qe2 {[%emt 0:00:07]} Nc6 {[%emt 0:00:03]} 4. Nf3 {[%emt 0:00:11]} e5 {[%emt 0:00:10]} 5. exd5 {[%emt 0:00:55]} Qxd5 {[%emt 0:00:09]} 6. Nc3 {[%emt 0:00:35]} Bb4 {[%emt 0:00:29]} 7. Bd2 {[%emt 0:00:55]} Bxc3 {[%emt 0:00:25]} 8. Bxc3 {[%emt 0:00:08]} Bg4 {[%emt 0:00:15]} 9. Qe4 {[%emt 0:06:00]} Bxf3 {[%emt 0:00:11]} 10. gxf3 {[%emt 0:00:37]} Nf6 {[%emt 0:04:31]} 11. Qe3 {[%emt 0:04:34]} O-O-O {[%emt 0:09:51]} 12. b3 {[%emt 0:04:12]} Nd4 {[%emt 0:06:48]} 13. O-O-O {[%emt 0:00:50]} Qc6 {[%emt 0:04:14]} 14. Kb2 {[%emt 0:03:35]} Nd5 {[%emt 0:03:40]} 0-1

[Event "Gibraltar Junior Intl U16 2019"]
[Site "Caleta"]
[Date "2019.08.16"]
[Round "2.8"]
[White "Serrano Almendros, Alejandro"]
[Black "Greco, Joseph"]
[Result "1-0"]
[ECO "D36"]
[WhiteElo "1922"]
[BlackElo "1690"]
[Annotator "NA"]
[PlyCount "119"]
[EventDate "2019.08.16"]
[EventType "swiss"]
[EventCountry "GGB"]
[SourceTitle "playchess.com"]
[Source "ChessBase"]
[SourceQuality "1"]
[TimeControl "6600+10"]

1. d4 {[%emt 0:00:00]} Nf6 {[%emt 0:00:00]} 2. c4 {[%emt 0:00:02]} e6 {[%emt 0:01:50]} 3. Nc3 {[%emt 0:00:20]} d5 {[%emt 0:00:24]} 4. cxd5 {[%emt 0:00:35]} exd5 {[%emt 0:00:17]} 5. Bg5 {[%emt 0:00:13]} Be7 {[%emt 0:00:34]} 6. Qc2 {[%emt 0:00:31]} c6 {[%emt 0:04:29]} 7. e3 {[%emt 0:00:27]} h6 {[%emt 0:02:47]} 8. Bh4 {[%emt 0:00:13]} O-O {[%emt 0:01:30]} 9. Bd3 {[%emt 0:00:07]} Ne8 {[%emt 0:03:19]} 10. Bxe7 {[%emt 0:02:46]} Qxe7 {[%emt 0:00:24]} 11. Nxd5 {[%emt 0:02:05]} cxd5 {[%emt 0:06:20]} 12. Qxc8 {[%emt 0:00:10]} Nc6 {[%emt 0:05:09]} 13. Qxa8 {[%emt 0:03:05]} Nf6 {[%emt 0:00:23]} 14. Qxf8+ {[%emt 0:00:10]} Kxf8 {[%emt 0:00:44]} 15. Nf3 {[%emt 0:09:59]} Qb4+ {[%emt 0:09:13]} 16. Nd2 {[%emt 0:04:00]} Ng4 {[%emt 0:03:51]} 17. Rd1 {[%emt 0:21:59]} Nxd4 {[%emt 0:12:37]} 18. h3 {[%emt 0:01:29]} Ne5 {[%emt 0:02:17]} 19. Bb1 {[%emt 0:02:52]} Nb5 {[%emt 0:03:34]} 20. O-O {[%emt 0:01:40]} Qxb2 {[%emt 0:05:46]} 21. Nb3 {[%emt 0:03:24]} Nc3 {[%emt 0:10:11]} 22. Rd2 {[%emt 0:03:22]} Qa3 {[%emt 0:02:32]} 23. Rc1 {[%emt 0:02:46]} Nc4 {[%emt 0:05:15]} 24. Rxc3 {[%emt 0:01:10]} Nxd2 {[%emt 0:00:27]} 25. Rc8+ {[%emt 0:00:13]} Ke7 {[%emt 0:00:21]} 26. Nxd2 {[%emt 0:00:09]} Kd7 {[%emt 0:02:42]} 27. Rc2 {[%emt 0:07:25]} a5 {[%emt 0:03:15]} 28. Nf3 {[%emt 0:01:39]} b5 {[%emt 0:05:30]} 29. Kh2 {[%emt 0:01:05]} f5 {[%emt 0:03:19]} 30. Rd2 {[%emt 0:01:29]} Ke6 {[%emt 0:05:39]} 31. Nd4+ {[%emt 0:01:27]} Kf6 {[%emt 0:01:37]} 32. Nxf5 {[%emt 0:01:14]} Qc1 {[%emt 0:00:59]} 33. Rxd5 {[%emt 0:06:07]} Qxb1 {[%emt 0:00:19]} 34. Ng3 {[%emt 0:01:14]} Ke6 {[%emt 0:01:37]} 35. Rd2 {[%emt 0:00:33]} a4 {[%emt 0:00:16]} 36. Ne2 {[%emt 0:01:47]} b4 {[%emt 0:01:53]} 37. Nd4+ {[%emt 0:01:27]} Kd5 {[%emt 0:01:08]} 38. Nb3+ {[%emt 0:11:21]} Kc4 {[%emt 0:01:11]} 39. Rd4+ {[%emt 0:00:06]} Kc3 {[%emt 0:00:17]} 40. Rc4+ {[%emt 0:00:17]} Kb2 {[%emt 0:00:25]} 41. Rxb4 {[%emt 0:00:39]} Kc3 {[%emt 0:00:34]} 42. Rxa4 {[%emt 0:00:26]} Qf5 {[%emt 0:00:42]} 43. Rf4 {[%emt 0:01:00]} Qe5 {[%emt 0:00:02]} 44. g3 {[%emt 0:00:26]} g5 {[%emt 0:00:13]} 45. Rd4 {[%emt 0:01:17]} h5 {[%emt 0:00:25]} 46. Kg2 {[%emt 0:00:28]} Qf5 {[%emt 0:00:32]} 47. Nd2 {[%emt 0:01:18]} Qf8 {[%emt 0:00:32]} 48. Ne4+ {[%emt 0:00:22]} Kb2 {[%emt 0:00:04]} 49. Nxg5 {[%emt 0:00:57]} Kxa2 {[%emt 0:00:07]} 50. Rh4 {[%emt 0:00:48]} Qe8 {[%emt 0:00:17]} 51. Nf3 {[%emt 0:01:59]} Kb2 {[%emt 0:00:10]} 52. Nd4 {[%emt 0:00:24]} Kc3 {[%emt 0:00:12]} 53. Ne2+ {[%emt 0:00:17]} Kd2 {[%emt 0:00:07]} 54. Nf4 {[%emt 0:00:47]} Qa8+ {[%emt 0:00:05]} 55. Kh2 {[%emt 0:02:22]} Qf3 {[%emt 0:00:08]} 56. Rxh5 {[%emt 0:01:29]} Ke1 {[%emt 0:00:21]} 57. Ra5 {[%emt 0:01:48]} Qxf2+ {[%emt 0:00:11]} 58. Ng2+ {[%emt 0:00:01]} Kd1 {[%emt 0:00:24]} 59. Ra1+ {[%emt 0:00:02]} Ke2 {[%emt 0:00:11]} 60. Ra2+ {[%emt 0:00:01]} 1-0